[Event "ESP-chT Div I 2018"]
[Site "Linares"]
[Date "2018.08.11"]
[Round "6"]
[White "Martin Capitan, Feliciano"]
[Black "Argandona Riveiro, Inigo"]
[Result "0-1"]
[ECO "C41"]
[WhiteElo "2066"]
[BlackElo "2415"]
[Annotator "NA"]
[PlyCount "70"]
[EventDate "2018.08.06"]
[EventType "team-tourn"]
[EventCountry "ESP"]
[SourceTitle "playchess.com"]
[Source "ChessBase"]
[SourceQuality "1"]
[TimeControl "40/5400+30:1800+30"]

1. e4 {[%emt 0:00:00]} e5 {[%emt 0:00:00]} 2. Nf3 {[%emt 0:00:00]} d6 {[%emt 0:00:00]} 3. Bc4 {[%emt 0:01:36]} Be7 {[%emt 0:00:00]} 4. O-O {[%emt 0:00:47]} Nf6 {[%emt 0:00:00]} 5. d3 {[%emt 0:02:25]} O-O {[%emt 0:00:06]} 6. Re1 {[%emt 0:02:02]} c6 {[%emt 0:00:06]} 7. Nbd2 {[%emt 0:02:21]} a5 {[%emt 0:00:54]} 8. a4 {[%emt 0:03:20]} Nbd7 {[%emt 0:00:05]} 9. Nf1 {[%emt 0:03:29]} Nc5 {[%emt 0:00:10]} 10. Ng3 {[%emt 0:02:55]} Nxa4 {[%emt 0:01:47]} 11. Rxa4 {[%emt 0:03:58]} b5 {[%emt 0:00:08]} 12. Bxb5 {[%emt 0:02:42]} cxb5 {[%emt 0:00:02]} 13. Ra1 {[%emt 0:00:14]} Re8 {[%emt 0:07:32]} 14. d4 {[%emt 0:04:56]} Qc7 {[%emt 0:03:03]} 15. Bg5 {[%emt 0:04:12]} h6 {[%emt 0:03:06]} 16. Bd2 {[%emt 0:08:06]} Kh7 {[%emt 0:04:26]} 17. Re3 {[%emt 0:12:52]} Ng4 {[%emt 0:05:11]} 18. Rea3 {[%emt 0:04:42]} a4 {[%emt 0:00:47]} 19. h3 {[%emt 0:00:50]} Nf6 {[%emt 0:00:10]} 20. d5 {[%emt 0:00:43]} Bd7 {[%emt 0:02:12]} 21. Bb4 {[%emt 0:05:09]} Qc4 {[%emt 0:09:00]} 22. Qe1 {[%emt 0:00:28]} Rac8 {[%emt 0:00:28]} 23. c3 {[%emt 0:00:27]} Qc7 {[%emt 0:03:45]} 24. Qe3 {[%emt 0:01:46]} g6 {[%emt 0:11:46]} 25. Rf1 {[%emt 0:03:49]} Ng8 {[%emt 0:02:57]} 26. Qd3 {[%emt 0:02:57]} Qb6 {[%emt 0:00:39]} 27. Raa1 {[%emt 0:01:16]} Rf8 {[%emt 0:01:37]} 28. Rae1 {[%emt 0:06:49]} Rce8 {[%emt 0:03:08]} 29. Kh2 {[%emt 0:00:59]} f5 {[%emt 0:06:42]} 30. Nd2 {[%emt 0:03:06]} f4 {[%emt 0:02:45]} 31. Nh1 {[%emt 0:03:45]} h5 {[%emt 0:02:17]} 32. f3 {[%emt 0:01:46]} Nh6 {[%emt 0:06:25]} 33. g4 {[%emt 0:03:31]} fxg3+ {[%emt 0:00:18]} 34. Nxg3 {[%emt 0:00:15]} Rf4 {[%emt 0:00:09]} 35. Rh1 {[%emt 0:02:02]} Qf2# {[%emt 0:00:16]} 0-1

[Event "ESP-chT Div I 2018"]
[Site "Linares"]
[Date "2018.08.11"]
[Round "6"]
[White "Badillo Ramos, Steve"]
[Black "Ortega Ruiz, Jose Miguel"]
[Result "0-1"]
[ECO "C55"]
[WhiteElo "1901"]
[BlackElo "2280"]
[Annotator "NA"]
[PlyCount "56"]
[EventDate "2018.08.06"]
[EventType "team-tourn"]
[EventCountry "ESP"]
[SourceTitle "playchess.com"]
[Source "ChessBase"]
[SourceQuality "1"]
[TimeControl "40/5400+30:1800+30"]

1. e4 {[%emt 0:00:00]} e5 {[%emt 0:00:00]} 2. Nf3 {[%emt 0:01:02]} Nc6 {[%emt 0:00:00]} 3. Bc4 {[%emt 0:00:09]} Nf6 {[%emt 0:01:15]} 4. d4 {[%emt 0:04:10]} exd4 {[%emt 0:00:19]} 5. e5 {[%emt 0:00:41]} d5 {[%emt 0:00:06]} 6. Bb5 {[%emt 0:00:10]} Nd7 {[%emt 0:00:06]} 7. O-O {[%emt 0:07:15]} Be7 {[%emt 0:01:22]} 8. Bxc6 {[%emt 0:01:22]} bxc6 {[%emt 0:00:07]} 9. Nxd4 {[%emt 0:01:25]} Nb8 {[%emt 0:00:09]} 10. e6 {[%emt 0:02:17]} O-O {[%emt 0:05:00]} 11. exf7+ {[%emt 0:16:50]} Rxf7 {[%emt 0:00:14]} 12. Nc3 {[%emt 0:05:53]} c5 {[%emt 0:07:56]} 13. Nb3 {[%emt 0:00:37]} c6 {[%emt 0:06:36]} 14. Ne2 {[%emt 0:04:15]} Bd6 {[%emt 0:12:07]} 15. c3 {[%emt 0:05:07]} Ba6 {[%emt 0:06:15]} 16. Be3 {[%emt 0:00:33]} Nd7 {[%emt 0:00:43]} 17. Qd2 {[%emt 0:00:35]} Qh4 {[%emt 0:01:15]} 18. g3 Qg4 {[%emt 0:01:35]} 19. f3 {[%emt 0:25:03]} Rxf3 {[%emt 0:00:31]} 20. Rxf3 {[%emt 0:00:16]} Qxf3 {[%emt 0:00:06]} 21. Nf4 {[%emt 0:00:09]} Rf8 {[%emt 0:14:14]} 22. Re1 {[%emt 0:01:17]} Qg4 {[%emt 0:07:00]} 23. Qg2 {[%emt 0:01:57]} Qf5 {[%emt 0:04:00]} 24. h4 {[%emt 0:02:40]} Qg4 {[%emt 0:01:41]} 25. Kh2 {[%emt 0:05:58]} Bxf4 {[%emt 0:00:24]} 26. Bxf4 {[%emt 0:00:04]} Rxf4 {[%emt 0:00:04]} 27. gxf4 {[%emt 0:00:06]} Qxh4+ {[%emt 0:00:05]} 28. Qh3 {[%emt 0:00:06]} Qf2+ {[%emt 0:00:03]} 0-1

[Event "ESP-chT Div I 2018"]
[Site "Linares"]
[Date "2018.08.11"]
[Round "6"]
[White "Bermudez Revuelta, Paula"]
[Black "Cao Armillas, Jesus"]
[Result "1-0"]
[ECO "B92"]
[WhiteElo "1887"]
[BlackElo "2043"]
[Annotator "NA"]
[PlyCount "103"]
[EventDate "2018.08.06"]
[EventType "team-tourn"]
[EventCountry "ESP"]
[SourceTitle "playchess.com"]
[Source "ChessBase"]
[SourceQuality "1"]
[TimeControl "40/5400+30:1800+30"]

1. e4 {[%emt 0:00:00]} c5 {[%emt 0:00:00]} 2. Nf3 {[%emt 0:00:00]} d6 {[%emt 0:00:00]} 3. d4 {[%emt 0:00:00]} cxd4 {[%emt 0:00:00]} 4. Nxd4 {[%emt 0:00:00]} Nf6 {[%emt 0:00:00]} 5. Nc3 {[%emt 0:00:00]} a6 {[%emt 0:00:00]} 6. Be2 {[%emt 0:00:00]} e5 {[%emt 0:00:01]} 7. Nb3 {[%emt 0:00:00]} Be7 {[%emt 0:00:06]} 8. Bg5 {[%emt 0:00:00]} Be6 {[%emt 0:00:23]} 9. Bxf6 {[%emt 0:00:03]} Bxf6 {[%emt 0:00:42]} 10. Qd3 {[%emt 0:00:05]} Nc6 {[%emt 0:03:17]} 11. O-O-O {[%emt 0:00:04]} Nd4 {[%emt 0:12:20]} 12. Nxd4 {[%emt 0:00:06]} exd4 {[%emt 0:00:05]} 13. Nd5 {[%emt 0:00:04]} Bxd5 {[%emt 0:01:12]} 14. exd5 {[%emt 0:00:07]} O-O {[%emt 0:00:11]} 15. Qf3 {[%emt 0:00:06]} Rc8 {[%emt 0:08:20]} 16. Bd3 {[%emt 0:00:38]} Re8 {[%emt 0:04:46]} 17. Kb1 {[%emt 0:03:35]} Be5 {[%emt 0:06:07]} 18. h4 {[%emt 0:07:33]} Qf6 {[%emt 0:01:41]} 19. Qe4 {[%emt 0:03:26]} g6 {[%emt 0:03:47]} 20. h5 {[%emt 0:04:54]} Qf4 {[%emt 0:06:58]} 21. hxg6 {[%emt 0:01:51]} hxg6 {[%emt 0:00:06]} 22. Qxf4 {[%emt 0:03:26]} Bxf4 {[%emt 0:00:06]} 23. Rh4 {[%emt 0:02:44]} Be5 {[%emt 0:00:23]} 24. Rdh1 {[%emt 0:02:49]} Bf6 {[%emt 0:06:49]} 25. R4h3 {[%emt 0:05:40]} Rc5 {[%emt 0:03:28]} 26. f4 {[%emt 0:02:12]} Rxd5 {[%emt 0:02:19]} 27. g4 {[%emt 0:03:53]} Re3 {[%emt 0:05:43]} 28. b4 {[%emt 0:02:44]} b5 {[%emt 0:02:25]} 29. a4 {[%emt 0:06:33]} Re8 {[%emt 0:04:51]} 30. a5 {[%emt 0:02:46]} Bg7 {[%emt 0:02:46]} 31. Kc1 {[%emt 0:02:20]} Re3 {[%emt 0:09:04]} 32. Kd2 {[%emt 0:02:31]} g5 {[%emt 0:03:21]} 33. Rh5 {[%emt 0:01:44]} f6 {[%emt 0:00:45]} 34. c4 {[%emt 0:05:38]} Rxd3+ {[%emt 0:01:42]} 35. Kxd3 {[%emt 0:00:04]} bxc4+ {[%emt 0:00:10]} 36. Kxc4 {[%emt 0:00:05]} Rb5 {[%emt 0:00:13]} 37. Rd1 {[%emt 0:02:29]} d5+ {[%emt 0:01:55]} 38. Kb3 {[%emt 0:00:27]} Bf8 {[%emt 0:06:56]} 39. Rxd4 {[%emt 0:01:24]} Bc5 {[%emt 0:00:56]} 40. Rxd5 {[%emt 0:00:18]} Rxb4+ {[%emt 0:00:08]} 41. Kc3 {[%emt 0:30:10]} Bf8 {[%emt 0:32:29]} 42. Rd4 {[%emt 0:06:11]} Rb5 43. fxg5 {[%emt 0:03:41]} fxg5 {[%emt 0:01:14]} 44. Ra4 {[%emt 0:00:53]} Kg7 {[%emt 0:00:25]} 45. Rh1 {[%emt 0:02:14]} Be7 {[%emt 0:01:34]} 46. Rd1 {[%emt 0:00:23]} Rc5+ {[%emt 0:00:26]} 47. Kd4 {[%emt 0:01:00]} Rb5 {[%emt 0:00:25]} 48. Rc1 {[%emt 0:02:26]} Bd8 {[%emt 0:00:54]} 49. Rc5 {[%emt 0:06:08]} Rb1 {[%emt 0:00:30]} 50. Rc6 {[%emt 0:02:15]} Rg1 {[%emt 0:00:22]} 51. Kd3 {[%emt 0:00:25]} Rg3+ {[%emt 0:00:33]} 52. Ke2 {[%emt 0:00:10]} 1-0

[Event "ESP-chT Div I 2018"]
[Site "Linares"]
[Date "2018.08.12"]
[Round "7"]
[White "Quesada Perez, Yasser"]
[Black "Alonso Alvarez, Aitor"]
[Result "1-0"]
[ECO "B23"]
[WhiteElo "2534"]
[BlackElo "2306"]
[Annotator "ChessBase"]
[PlyCount "53"]
[EventDate "2018.08.06"]
[EventType "team-tourn"]
[EventCountry "ESP"]
[SourceTitle "playchess.com"]
[Source "ChessBase"]
[SourceQuality "1"]
[TimeControl "40/5400+30:1800+30"]

1. e4 {[%emt 0:00:00]} c5 {[%emt 0:00:00]} 2. Nc3 {[%emt 0:00:00]} a6 {[%emt 0:00:00]} 3. g3 {[%emt 0:00:00]} Nc6 {[%emt 0:00:00]} 4. Bg2 {[%emt 0:00:11]} g6 {[%emt 0:00:02]} 5. d3 {[%emt 0:01:02]} Bg7 {[%emt 0:00:13]} 6. f4 {[%emt 0:00:54]} e6 {[%emt 0:00:43]} 7. Be3 {[%emt 0:01:49]} d6 {[%emt 0:01:47]} 8. Nf3 {[%emt 0:00:28]} Nd4 {[%emt 0:00:09]} 9. O-O {[%emt 0:00:48]} Ne7 {[%emt 0:00:05]} 10. Qd2 {[%emt 0:03:32]} O-O {[%emt 0:00:17]} 11. Nd1 {[%emt 0:00:49]} b6 {[%emt 0:14:47]} 12. Nh4 {[%emt 0:06:23]} Rb8 {[%emt 0:04:21]} 13. c3 {[%emt 0:03:34]} Ndc6 {[%emt 0:00:11]} 14. f5 {[%emt 0:03:23]} exf5 {[%emt 0:10:56]} 15. exf5 {[%emt 0:00:36]} gxf5 {[%emt 0:01:12]} 16. Bh6 {[%emt 0:02:40]} Bxh6 {[%emt 0:07:51]} 17. Qxh6 {[%emt 0:00:06]} Ne5 {[%emt 0:00:29]} 18. Ne3 {[%emt 0:04:06]} Ng4 {[%emt 0:03:26]} 19. Nxg4 {[%emt 0:10:17]} fxg4 {[%emt 0:00:08]} 20. Rf6 {[%emt 0:00:07]} Ng6 {[%emt 0:06:49]} 21. Nxg6 {[%emt 0:01:38]} hxg6 {[%emt 0:01:22]} 22. Rxg6+ {[%emt 0:00:06]} fxg6 {[%emt 0:00:11]} 23. Qxg6+ {[%emt 0:00:03]} Kh8 {[%emt 0:00:08]} 24. Qh6+ {[%emt 0:00:04]} Kg8 {[%emt 0:00:15]} 25. Bd5+ {[%emt 0:00:04]} Rf7 {[%emt 0:00:16]} 26. Bxf7+ {[%emt 0:03:21]} Kxf7 {[%emt 0:00:59]} 27. Rf1+ {[%emt 0:00:04]} 1-0

[Event "ESP-chT Div I 2018"]
[Site "Linares"]
[Date "2018.08.12"]
[Round "7"]
[White "Gascon Del Nogal, Jose Rafael"]
[Black "Pap, Misa"]
[Result "1/2-1/2"]
[ECO "C50"]
[WhiteElo "2476"]
[BlackElo "2478"]
[Annotator "ChessBase"]
[PlyCount "38"]
[EventDate "2018.08.06"]
[EventType "team-tourn"]
[EventCountry "ESP"]
[SourceTitle "playchess.com"]
[Source "ChessBase"]
[SourceQuality "1"]
[TimeControl "40/5400+30:1800+30"]

1. e4 {[%emt 0:00:00]} e5 {[%emt 0:02:50]} 2. Nf3 {[%emt 0:00:00]} Nc6 {[%emt 0:00:06]} 3. Bc4 {[%emt 0:00:00]} Nf6 {[%emt 0:01:42]} 4. d3 {[%emt 0:00:02]} Bc5 {[%emt 0:00:23]} 5. O-O {[%emt 0:00:17]} O-O {[%emt 0:00:21]} 6. h3 {[%emt 0:00:14]} a6 {[%emt 0:00:45]} 7. Re1 {[%emt 0:00:54]} d6 {[%emt 0:01:20]} 8. c3 {[%emt 0:00:33]} Ba7 {[%emt 0:01:12]} 9. a4 {[%emt 0:00:06]} b5 {[%emt 0:11:36]} 10. Bb3 {[%emt 0:06:07]} b4 {[%emt 0:00:15]} 11. a5 {[%emt 0:01:43]} Rb8 {[%emt 0:00:14]} 12. Bc4 {[%emt 0:00:50]} bxc3 {[%emt 0:12:14]} 13. bxc3 {[%emt 0:01:09]} Nxa5 {[%emt 0:06:15]} 14. Rxa5 {[%emt 0:00:06]} Rxb1 {[%emt 0:00:07]} 15. Qc2 {[%emt 0:04:34]} Rb8 {[%emt 0:06:57]} 16. d4 {[%emt 0:00:53]} Bb6 {[%emt 0:19:11]} 17. Ra3 {[%emt 0:02:17]} Qe7 {[%emt 0:05:44]} 18. Bxa6 {[%emt 0:00:30]} Bxa6 {[%emt 0:00:51]} 19. Rxa6 {[%emt 0:00:05]} Ra8 {[%emt 0:10:02]} 1/2-1/2

[Event "ESP-chT Div I 2018"]
[Site "Linares"]
[Date "2018.08.12"]
[Round "7"]
[White "Almagro Llamas, Pablo"]
[Black "Rivas Garcia, Victor"]
[Result "1-0"]
[ECO "A85"]
[WhiteElo "2442"]
[BlackElo "2217"]
[Annotator "NA"]
[PlyCount "161"]
[EventDate "2018.08.06"]
[EventType "team-tourn"]
[EventCountry "ESP"]
[SourceTitle "playchess.com"]
[Source "ChessBase"]
[SourceQuality "1"]
[TimeControl "40/5400+30:1800+30"]

1. d4 {[%emt 0:00:00]} f5 {[%emt 0:00:00]} 2. c4 {[%emt 0:00:00]} Nf6 {[%emt 0:00:00]} 3. Nc3 {[%emt 0:00:33]} d6 {[%emt 0:00:00]} 4. Bg5 {[%emt 0:00:34]} Nbd7 {[%emt 0:00:00]} 5. Qc2 {[%emt 0:03:55]} g6 {[%emt 0:01:02]} 6. O-O-O {[%emt 0:00:26]} Bg7 {[%emt 0:00:56]} 7. Nh3 {[%emt 0:01:10]} c6 {[%emt 0:07:01]} 8. Nf4 {[%emt 0:02:57]} Nf8 {[%emt 0:01:10]} 9. e4 {[%emt 0:17:27]} Ne6 {[%emt 0:08:28]} 10. Nxe6 {[%emt 0:01:56]} Bxe6 {[%emt 0:00:13]} 11. exf5 {[%emt 0:10:35]} Bxf5 {[%emt 0:00:17]} 12. Bd3 {[%emt 0:00:07]} Qa5 {[%emt 0:07:53]} 13. h4 {[%emt 0:02:38]} O-O-O {[%emt 0:04:57]} 14. f3 {[%emt 0:04:31]} Rde8 {[%emt 0:04:04]} 15. Rhe1 {[%emt 0:01:48]} Rhf8 {[%emt 0:02:48]} 16. g4 {[%emt 0:04:13]} Bd7 {[%emt 0:05:19]} 17. Kb1 {[%emt 0:04:02]} Rf7 {[%emt 0:06:55]} 18. Bd2 {[%emt 0:07:41]} Qc7 {[%emt 0:02:59]} 19. Be3 {[%emt 0:04:17]} Kb8 {[%emt 0:03:26]} 20. Qg2 {[%emt 0:04:07]} Qa5 {[%emt 0:04:31]} 21. Rh1 {[%emt 0:11:12]} Ref8 {[%emt 0:04:39]} 22. Ne2 {[%emt 0:06:49]} Ka8 {[%emt 0:13:54]} 23. Ng3 {[%emt 0:00:56]} Ne8 {[%emt 0:01:46]} 24. Rhf1 {[%emt 0:00:54]} e5 {[%emt 0:01:10]} 25. dxe5 {[%emt 0:01:48]} Qxe5 {[%emt 0:01:51]} 26. Bc1 {[%emt 0:00:09]} Nc7 {[%emt 0:02:09]} 27. h5 {[%emt 0:02:07]} gxh5 {[%emt 0:01:42]} 28. Nxh5 {[%emt 0:00:46]} Bh8 {[%emt 0:00:26]} 29. f4 {[%emt 0:00:32]} Qa5 {[%emt 0:01:29]} 30. f5 {[%emt 0:00:27]} d5 {[%emt 0:02:34]} 31. Nf4 {[%emt 0:01:34]} dxc4 {[%emt 0:01:25]} 32. Bxc4 {[%emt 0:00:14]} Re7 {[%emt 0:00:24]} 33. Ne6 {[%emt 0:01:27]} Rfe8 {[%emt 0:02:51]} 34. Bd2 {[%emt 0:02:43]} Qb6 {[%emt 0:00:37]} 35. Bg5 {[%emt 0:00:31]} Bxe6 {[%emt 0:03:27]} 36. fxe6 {[%emt 0:00:24]} Rg7 {[%emt 0:01:18]} 37. Rd8+ {[%emt 0:00:57]} Rxd8 {[%emt 0:00:08]} 38. Bxd8 {[%emt 0:00:05]} Qc5 {[%emt 0:01:50]} 39. Bxc7 {[%emt 0:01:15]} Rxc7 {[%emt 0:00:16]} 40. Qf2 {[%emt 0:01:31]} Qxf2 {[%emt 0:00:41]} 41. Rxf2 {[%emt 0:30:01]} Bg7 {[%emt 0:30:07]} 42. g5 {[%emt 0:00:27]} b5 {[%emt 0:00:34]} 43. Bd3 {[%emt 0:00:24]} h6 {[%emt 0:01:59]} 44. g6 {[%emt 0:00:06]} Kb7 {[%emt 0:00:43]} 45. Bf5 {[%emt 0:00:24]} Re7 {[%emt 0:00:19]} 46. Kc2 {[%emt 0:00:20]} Kc7 {[%emt 0:00:35]} 47. Rd2 {[%emt 0:00:15]} a5 {[%emt 0:00:23]} 48. Kd3 {[%emt 0:00:31]} Kb6 {[%emt 0:00:16]} 49. Ke4 {[%emt 0:00:09]} Kc7 {[%emt 0:00:13]} 50. b3 {[%emt 0:00:11]} Kb6 {[%emt 0:00:25]} 51. Bg4 {[%emt 0:01:33]} Kc7 {[%emt 0:00:10]} 52. Kf5 {[%emt 0:00:23]} c5 {[%emt 0:01:27]} 53. Be2 {[%emt 0:00:19]} b4 {[%emt 0:01:42]} 54. Rd5 {[%emt 0:00:59]} Kc6 {[%emt 0:00:52]} 55. Rd8 {[%emt 0:00:17]} Kc7 {[%emt 0:00:26]} 56. Ra8 {[%emt 0:00:49]} Kb6 {[%emt 0:00:14]} 57. Ra6+ {[%emt 0:00:26]} Kb7 {[%emt 0:00:05]} 58. Rxa5 {[%emt 0:00:09]} Kb6 {[%emt 0:00:02]} 59. Rb5+ {[%emt 0:00:21]} Kc6 {[%emt 0:00:07]} 60. Rb8 {[%emt 0:00:11]} Ra7 {[%emt 0:00:48]} 61. Rd8 {[%emt 0:01:08]} Re7 {[%emt 0:00:21]} 62. Bc4 {[%emt 0:00:30]} Kc7 {[%emt 0:00:19]} 63. Rg8 {[%emt 0:00:45]} Bd4 {[%emt 0:00:41]} 64. Ra8 {[%emt 0:00:36]} Kb7 {[%emt 0:01:19]} 65. Bd5+ {[%emt 0:00:29]} Kc7 {[%emt 0:00:20]} 66. Bf3 {[%emt 0:00:51]} Bg7 {[%emt 0:01:03]} 67. Bg4 {[%emt 0:00:17]} Kb7 {[%emt 0:00:14]} 68. Rg8 {[%emt 0:00:15]} Bd4 {[%emt 0:00:10]} 69. Ke4 {[%emt 0:00:32]} Kc6 {[%emt 0:00:39]} 70. Rc8+ {[%emt 0:00:38]} Kb7 {[%emt 0:00:29]} 71. Rd8 {[%emt 0:00:23]} Kc7 {[%emt 0:00:25]} 72. Rf8 {[%emt 0:00:52]} Bg7 {[%emt 0:00:39]} 73. Rg8 {[%emt 0:00:11]} Kd6 {[%emt 0:00:26]} 74. Ra8 {[%emt 0:00:18]} Bd4 {[%emt 0:00:51]} 75. Ra6+ {[%emt 0:00:13]} Kc7 {[%emt 0:00:17]} 76. Kd5 {[%emt 0:00:15]} Kb7 {[%emt 0:00:18]} 77. Rd6 {[%emt 0:00:23]} Kc7 {[%emt 0:00:18]} 78. Rd7+ {[%emt 0:00:28]} Rxd7+ {[%emt 0:00:07]} 79. exd7 {[%emt 0:00:02]} h5 {[%emt 0:01:29]} 80. Bh3 {[%emt 0:00:06]} Kd8 {[%emt 0:00:39]} 81. Ke6 {[%emt 0:00:08]} 1-0

[Event "ESP-chT Div I 2018"]
[Site "Linares"]
[Date "2018.08.12"]
[Round "7"]
[White "Gonzalez De La Torre, Santiago"]
[Black "Gonzalez Merino, Alberto"]
[Result "1-0"]
[ECO "C10"]
[WhiteElo "2434"]
[BlackElo "2199"]
[Annotator "NA"]
[PlyCount "101"]
[EventDate "2018.08.06"]
[EventType "team-tourn"]
[EventCountry "ESP"]
[SourceTitle "playchess.com"]
[Source "ChessBase"]
[SourceQuality "1"]
[TimeControl "40/5400+30:1800+30"]

1. e4 {[%emt 0:00:00]} e6 {[%emt 0:00:19]} 2. d4 {[%emt 0:00:00]} d5 {[%emt 0:00:15]} 3. Nc3 {[%emt 0:00:00]} dxe4 {[%emt 0:00:50]} 4. Nxe4 {[%emt 0:00:00]} Bd7 {[%emt 0:00:04]} 5. Nf3 {[%emt 0:00:27]} Bc6 {[%emt 0:00:24]} 6. Neg5 {[%emt 0:00:08]} Be7 {[%emt 0:19:18]} 7. Ne5 {[%emt 0:01:10]} Bxg5 {[%emt 0:07:30]} 8. Qh5 {[%emt 0:00:12]} g6 {[%emt 0:01:17]} 9. Qxg5 {[%emt 0:00:11]} Qxg5 {[%emt 0:13:41]} 10. Bxg5 {[%emt 0:00:11]} Be4 {[%emt 0:00:21]} 11. f3 {[%emt 0:02:58]} Bc6 {[%emt 0:18:50]} 12. O-O-O {[%emt 0:02:21]} Nd7 {[%emt 0:06:17]} 13. Bf4 {[%emt 0:06:29]} Ne7 {[%emt 0:08:21]} 14. Nxc6 {[%emt 0:00:55]} Nxc6 {[%emt 0:00:13]} 15. Bxc7 {[%emt 0:00:12]} O-O {[%emt 0:01:00]} 16. Kb1 {[%emt 0:11:42]} Rac8 {[%emt 0:00:57]} 17. Bg3 {[%emt 0:00:08]} Nb6 {[%emt 0:00:50]} 18. c4 {[%emt 0:05:52]} Rfd8 {[%emt 0:02:05]} 19. Bf2 {[%emt 0:00:11]} Rc7 {[%emt 0:02:01]} 20. Be2 {[%emt 0:00:43]} Rcd7 {[%emt 0:01:24]} 21. Bh4 {[%emt 0:00:09]} Ne7 {[%emt 0:04:25]} 22. Bf6 {[%emt 0:02:46]} Kf8 {[%emt 0:00:03]} 23. Rd2 {[%emt 0:01:43]} Rc8 {[%emt 0:00:17]} 24. Rc1 {[%emt 0:00:49]} Ng8 {[%emt 0:00:15]} 25. Bg5 {[%emt 0:01:17]} f6 {[%emt 0:02:57]} 26. Be3 {[%emt 0:01:15]} Ne7 {[%emt 0:00:03]} 27. g4 {[%emt 0:00:34]} Rcd8 {[%emt 0:00:55]} 28. Rcd1 {[%emt 0:00:38]} Kg7 {[%emt 0:01:04]} 29. b3 {[%emt 0:01:33]} g5 {[%emt 0:01:32]} 30. Kb2 {[%emt 0:05:28]} Ng6 {[%emt 0:02:07]} 31. Bf1 {[%emt 0:00:10]} Nf4 {[%emt 0:00:11]} 32. h4 {[%emt 0:00:13]} h6 {[%emt 0:00:08]} 33. a4 {[%emt 0:00:19]} Nc8 {[%emt 0:01:58]} 34. a5 {[%emt 0:08:10]} Kf8 {[%emt 0:00:01]} 35. Kc3 {[%emt 0:01:38]} Rc7 {[%emt 0:02:02]} 36. Kb2 {[%emt 0:04:44]} Rcd7 {[%emt 0:00:12]} 37. b4 {[%emt 0:00:29]} Ke8 {[%emt 0:00:28]} 38. b5 {[%emt 0:01:43]} Rc7 {[%emt 0:02:37]} 39. Kb3 {[%emt 0:00:41]} b6 {[%emt 0:00:14]} 40. hxg5 {[%emt 0:06:51]} hxg5 {[%emt 0:00:01]} 41. Rh2 {[%emt 0:30:17]} Rf7 {[%emt 0:30:05]} 42. axb6 {[%emt 0:00:47]} Nxb6 {[%emt 0:01:16]} 43. Ra1 {[%emt 0:00:15]} Rdd7 {[%emt 0:00:37]} 44. Bxf4 {[%emt 0:02:54]} gxf4 {[%emt 0:00:02]} 45. c5 {[%emt 0:00:08]} Nd5 {[%emt 0:00:40]} 46. b6 {[%emt 0:00:09]} Rb7 {[%emt 0:01:45]} 47. Rh8+ {[%emt 0:00:35]} Rf8 {[%emt 0:00:54]} 48. Bb5+ {[%emt 0:00:14]} Ke7 {[%emt 0:00:05]} 49. Rh7+ {[%emt 0:00:53]} Rf7 {[%emt 0:00:01]} 50. Rxf7+ {[%emt 0:00:09]} Kxf7 {[%emt 0:00:02]} 51. Rxa7 {[%emt 0:00:09]} 1-0